[Event "Chessity Nationale Pupillendag 2019 - Groep G"]
[Site "Meppel, Netherlands"]
[Date "2019.06.29"]
[Round "1.1"]
[White "Huang, Luna"]
[Black "Parson, Romin"]
[Result "1-0"]
[TimeControl "15 min + 10 sec"]
[WhiteElo "955"]
[BlackElo "388"]

1. e4 {[%clk 00:15:18]} {[%emt 00:00:02]} e5 {[%emt 00:00:02]} 2. Nf3 {[%emt
00:00:04]} Bb4 {[%clk 00:15:01]} {[%emt 00:00:06]} 3. a3 {[%clk 00:15:12]}
{[%emt 00:00:24]} Bc5 {[%clk 00:15:09]} {[%emt 00:00:02]} 4. Nxe5 {[%emt
00:00:19]} Bd6 {[%clk 00:15:13]} {[%emt 00:00:01]} 5. Nf3 {[%clk 00:15:11]}
{[%emt 00:00:07]} Bc5 {[%clk 00:15:14]} {[%emt 00:00:09]} 6. d4 {[%clk
00:15:18]} {[%emt 00:00:03]} Bb6 {[%clk 00:15:21]} {[%emt 00:00:02]} 7. Nc3
{[%clk 00:15:00]} {[%emt 00:00:29]} Ba5 {[%emt 00:00:02]} 8. b4 {[%emt
00:00:03]} Bb6 {[%clk 00:15:22]} {[%emt 00:00:04]} 9. Bc4 {[%clk 00:14:58]}
{[%emt 00:00:11]} d5 {[%clk 00:15:29]} {[%emt 00:00:03]} 10. Nxd5 {[%clk
00:14:55]} {[%emt 00:00:14]} Bg4 {[%clk 00:15:27]} {[%emt 00:00:11]} 11. Nxb6
{[%clk 00:14:39]} {[%emt 00:00:27]} cxb6 {[%clk 00:15:33]} {[%emt 00:00:03]} 12.
Be3 {[%clk 00:14:38]} {[%emt 00:00:11]} Nf6 {[%clk 00:15:08]} {[%emt 00:00:08]}
13. e5 {[%clk 00:14:10]} {[%emt 00:01:06]} Ne4 {[%clk 00:14:26]} {[%emt
00:00:07]} 14. h3 {[%clk 00:13:38]} {[%emt 00:01:27]} Bxf3 {[%emt 00:00:08]} 15.
Qxf3 {[%emt 00:00:09]} b5 {[%clk 00:14:07]} {[%emt 00:00:12]} 16. Qxf7# {[%clk
00:12:57]} {[%emt 00:00:49]} 1-0

[Event "Chessity Nationale Pupillendag 2019 - Groep G"]
[Site "Meppel, Netherlands"]
[Date "2019.06.29"]
[Round "1.2"]
[White "Meskers, Babet"]
[Black "Terlouw, Wouter"]
[Result "0-1"]
[TimeControl "15 min + 10 sec"]
[WhiteElo "341"]
[BlackElo "898"]

1. e4 {[%clk 00:15:19]} c5 {[%clk 00:15:19]} {[%emt 00:00:02]} 2. Qh5 {[%clk
00:15:25]} {[%emt 00:00:04]} e6 {[%clk 00:15:27]} {[%emt 00:00:02]} 3. Bc4
{[%clk 00:15:29]} {[%emt 00:00:06]} Nc6 {[%clk 00:15:34]} {[%emt 00:00:02]} 4.
f4 {[%emt 00:00:08]} Nf6 {[%emt 00:00:03]} 5. Qf3 {[%clk 00:15:19]} {[%emt
00:00:07]} Nd4 {[%clk 00:15:42]} {[%emt 00:00:03]} 6. Qe3 {[%clk 00:15:20]}
{[%emt 00:00:04]} Nxc2+ {[%clk 00:15:49]} {[%emt 00:00:08]} 7. Ke2 {[%clk
00:15:22]} {[%emt 00:00:06]} Nxe3 {[%clk 00:15:57]} {[%emt 00:00:05]} 8. dxe3
{[%clk 00:15:27]} {[%emt 00:00:03]} Nxe4 {[%clk 00:16:05]} {[%emt 00:00:03]} 9.
f5 {[%clk 00:15:29]} {[%emt 00:00:08]} exf5 {[%clk 00:16:11]} {[%emt 00:00:04]}
10. Nf3 {[%clk 00:15:31]} {[%emt 00:00:07]} d5 {[%clk 00:16:14]} {[%emt
00:00:08]} 11. Bb5+ {[%emt 00:00:33]} Bd7 {[%clk 00:16:19]} 12. Bd3 {[%clk
00:15:15]} {[%emt 00:00:06]} c4 {[%clk 00:16:23]} {[%emt 00:00:08]} 13. Bxe4
{[%clk 00:15:21]} {[%emt 00:00:04]} fxe4 {[%clk 00:16:29]} {[%emt 00:00:04]} 14.
Ne5 {[%clk 00:15:34]} {[%emt 00:00:06]} Bg4+ {[%clk 00:16:47]} {[%emt
00:00:03]} 15. Kd2 {[%clk 00:15:38]} {[%emt 00:00:05]} Qg5 {[%clk 00:17:00]}
{[%emt 00:00:26]} 16. h3 {[%clk 00:15:25]} {[%emt 00:00:13]} Qxe5 {[%clk
00:17:05]} {[%emt 00:00:06]} 17. hxg4 {[%clk 00:15:27]} {[%emt 00:00:03]} Bb4+
{[%clk 00:17:12]} {[%emt 00:00:08]} 18. Kc2 {[%emt 00:00:10]} d4 {[%emt
00:00:22]} 19. exd4 {[%clk 00:14:58]} {[%emt 00:00:04]} Qxd4 {[%clk 00:17:20]}
{[%emt 00:00:06]} 20. Rd1 {[%clk 00:14:59]} {[%emt 00:00:08]} Qf2+ {[%clk
00:17:19]} {[%emt 00:00:11]} 21. Bd2 {[%clk 00:14:53]} {[%emt 00:00:07]} e3
{[%clk 00:17:23]} {[%emt 00:00:15]} 22. Kc1 {[%clk 00:14:45]} {[%emt 00:00:17]}
exd2+ {[%clk 00:17:30]} {[%emt 00:00:03]} 23. Rxd2 {[%clk 00:14:49]} {[%emt
00:00:05]} Bxd2+ {[%clk 00:17:38]} {[%emt 00:00:04]} 24. Nxd2 {[%clk 00:14:56]}
{[%emt 00:00:03]} Qe1+ {[%clk 00:17:43]} {[%emt 00:00:04]} 25. Kc2 {[%clk
00:15:03]} {[%emt 00:00:03]} Qxa1 {[%clk 00:17:50]} {[%emt 00:00:03]} 26. Nxc4
{[%clk 00:15:09]} {[%emt 00:00:05]} Rc8 {[%clk 00:17:57]} {[%emt 00:00:02]} 27.
b3 {[%clk 00:15:17]} {[%emt 00:00:03]} b5 {[%clk 00:18:05]} {[%emt 00:00:02]}
28. Kd3 {[%clk 00:15:20]} {[%emt 00:00:07]} bxc4+ {[%clk 00:18:11]} {[%emt
00:00:04]} 29. bxc4 {[%clk 00:15:29]} Qxa2 {[%clk 00:18:19]} {[%emt 00:00:04]}
30. Kd4 {[%clk 00:15:37]} {[%emt 00:00:01]} Rd8+ {[%clk 00:18:25]} {[%emt
00:00:04]} 31. Kc3 {[%clk 00:15:43]} {[%emt 00:00:04]} Qd2+ {[%clk 00:18:39]}
{[%emt 00:00:09]} 32. Kb3 {[%clk 00:15:57]} {[%emt 00:00:03]} Rb8+ {[%clk
00:18:47]} {[%emt 00:00:02]} 33. Ka4 {[%clk 00:16:02]} {[%emt 00:00:03]} Qa2#
{[%clk 00:18:55]} {[%emt 00:00:04]} 0-1

[Event "Chessity Nationale Pupillendag 2019 - Groep G"]
[Site "Meppel, Netherlands"]
[Date "2019.06.29"]
[Round "1.3"]
[White "Zecha, Oscar"]
[Black "Van Haastert, Benjamin"]
[Result "1-0"]
[TimeControl "15 min + 10 sec"]
[WhiteElo "802"]
[BlackElo "319"]

1. d4 {[%clk 00:15:19]} d5 {[%clk 00:15:20]} {[%emt 00:00:01]} 2. c4 {[%clk
00:15:28]} {[%emt 00:00:01]} dxc4 {[%clk 00:15:27]} {[%emt 00:00:02]} 3. e3
{[%clk 00:15:37]} Nf6 {[%clk 00:15:30]} {[%emt 00:00:08]} 4. Bxc4 {[%clk
00:15:44]} {[%emt 00:00:02]} Bg4 {[%clk 00:15:30]} {[%emt 00:00:11]} 5. Nf3
{[%clk 00:15:34]} {[%emt 00:00:20]} Bxf3 {[%clk 00:15:36]} {[%emt 00:00:03]} 6.
Qxf3 {[%clk 00:15:34]} {[%emt 00:00:10]} e6 {[%clk 00:15:38]} {[%emt 00:00:08]}
7. Qxb7 {[%clk 00:15:33]} {[%emt 00:00:11]} Nbd7 {[%clk 00:15:38]} {[%emt
00:00:11]} 8. O-O {[%clk 00:15:14]} {[%emt 00:00:28]} Qb8 {[%clk 00:15:39]}
{[%emt 00:00:09]} 9. Qxb8+ {[%clk 00:15:21]} Rxb8 {[%clk 00:15:48]} {[%emt
00:00:05]} 10. Nc3 {[%clk 00:15:23]} Bd6 {[%clk 00:15:49]} {[%emt 00:00:16]} 11.
h3 {[%clk 00:15:12]} O-O {[%clk 00:15:56]} {[%emt 00:00:23]} 12. Rb1 {[%clk
00:15:12]} c5 {[%clk 00:15:53]} {[%emt 00:00:25]} 13. Bd2 {[%clk 00:14:54]}
cxd4 {[%clk 00:16:00]} {[%emt 00:00:32]} 14. exd4 {[%clk 00:14:59]} {[%emt
00:00:04]} Nb6 {[%clk 00:15:55]} {[%emt 00:00:15]} 15. Bd3 {[%clk 00:14:40]}
{[%emt 00:00:30]} e5 {[%clk 00:15:42]} {[%emt 00:00:22]} 16. dxe5 {[%clk
00:14:35]} {[%emt 00:00:15]} Bxe5 {[%clk 00:15:50]} {[%emt 00:00:01]} 17. Rfe1
{[%clk 00:14:36]} {[%emt 00:00:09]} Bxc3 {[%clk 00:15:56]} {[%emt 00:00:04]} 18.
Bxc3 {[%clk 00:14:43]} {[%emt 00:00:04]} Nfd5 {[%clk 00:16:00]} {[%emt
00:00:06]} 19. Be5 {[%clk 00:14:28]} {[%emt 00:00:25]} Rbe8 {[%clk 00:16:02]}
{[%emt 00:00:08]} 20. Bd6 {[%clk 00:13:39]} {[%emt 00:00:59]} Rxe1+ {[%clk
00:15:32]} {[%emt 00:00:40]} 21. Rxe1 {[%clk 00:13:46]} {[%emt 00:00:03]} Rd8
{[%clk 00:15:37]} {[%emt 00:00:02]} 22. a3 {[%clk 00:13:37]} {[%emt 00:00:23]}
h6 {[%emt 00:00:30]} 23. b4 {[%clk 00:13:16]} {[%emt 00:00:24]} g6 {[%clk
00:15:29]} {[%emt 00:00:04]} 24. Bc5 {[%clk 00:12:17]} {[%emt 00:01:10]} Nf4
{[%clk 00:15:00]} {[%emt 00:00:36]} 25. Ba6 {[%clk 00:11:44]} {[%emt 00:00:47]}
Na4 {[%clk 00:14:53]} {[%emt 00:00:13]} 26. Bxa7 {[%clk 00:11:12]} {[%emt
00:00:44]} Ra8 {[%clk 00:14:43]} {[%emt 00:00:18]} 27. Re7 {[%clk 00:11:11]}
{[%emt 00:00:14]} Nd5 {[%clk 00:14:41]} {[%emt 00:00:10]} 28. Rb7 {[%clk
00:10:52]} {[%emt 00:00:32]} Re8 {[%clk 00:14:00]} {[%emt 00:00:48]} 29. Rb8
{[%clk 00:10:23]} {[%emt 00:00:41]} Rxb8 {[%clk 00:14:01]} {[%emt 00:00:09]} 30.
Bxb8 {[%clk 00:10:32]} {[%emt 00:00:01]} Nab6 {[%clk 00:13:46]} {[%emt
00:00:25]} 31. b5 {[%clk 00:10:16]} {[%emt 00:00:25]} Kf8 {[%clk 00:13:31]}
{[%emt 00:00:25]} 32. Bb7 {[%clk 00:10:03]} {[%emt 00:00:24]} Ne7 {[%clk
00:13:14]} {[%emt 00:00:27]} 33. Bc7 {[%clk 00:09:39]} {[%emt 00:00:35]} Nbd5
{[%clk 00:12:50]} {[%emt 00:00:33]} 34. b6 {[%clk 00:09:29]} {[%emt 00:00:22]}
Ke8 {[%clk 00:12:46]} {[%emt 00:00:13]} 35. Bxd5 {[%clk 00:09:32]} {[%emt
00:00:07]} Nxd5 {[%clk 00:12:53]} {[%emt 00:00:02]} 36. b7 {[%clk 00:09:39]}
{[%emt 00:00:04]} Nxc7 {[%clk 00:12:32]} {[%emt 00:00:30]} 37. b8=Q+ {[%clk
00:09:46]} {[%emt 00:00:02]} Kd7 {[%clk 00:12:40]} {[%emt 00:00:05]} 38. a4
{[%clk 00:09:51]} {[%emt 00:00:05]} Na6 {[%clk 00:12:40]} {[%emt 00:00:09]} 39.
Qb7+ {[%clk 00:09:59]} {[%emt 00:00:02]} Nc7 {[%clk 00:12:46]} {[%emt
00:00:04]} 40. a5 {[%clk 00:10:07]} {[%emt 00:00:02]} f6 {[%clk 00:12:35]}
{[%emt 00:00:21]} 41. a6 {[%clk 00:10:14]} {[%emt 00:00:04]} Kd8 {[%clk
00:12:35]} {[%emt 00:00:10]} 42. a7 {[%clk 00:10:20]} {[%emt 00:00:05]} h5
{[%clk 00:12:31]} {[%emt 00:00:13]} 43. a8=Q+ {[%clk 00:10:28]} {[%emt
00:00:02]} Nxa8 {[%clk 00:12:40]} 44. Qxa8+ {[%clk 00:10:36]} {[%emt 00:00:02]}
Kc7 {[%clk 00:12:49]} {[%emt 00:00:01]} 45. Qd5 {[%clk 00:10:38]} {[%emt
00:00:09]} f5 {[%clk 00:12:55]} {[%emt 00:00:04]} 46. Kf1 {[%clk 00:10:43]}
{[%emt 00:00:04]} h4 {[%clk 00:13:00]} {[%emt 00:00:05]} 47. Ke2 {[%clk
00:10:50]} {[%emt 00:00:03]} f4 {[%clk 00:13:06]} {[%emt 00:00:03]} 48. Qe6
{[%clk 00:10:53]} {[%emt 00:00:07]} g5 {[%clk 00:13:02]} 49. Kd3 {[%clk
00:11:01]} {[%emt 00:00:16]} g4 {[%clk 00:13:08]} {[%emt 00:00:04]} 50. Kc4
{[%clk 00:11:01]} {[%emt 00:00:11]} gxh3 {[%clk 00:13:16]} {[%emt 00:00:03]} 51.
gxh3 {[%clk 00:11:09]} f3 {[%clk 00:13:24]} {[%emt 00:00:01]} 52. Kc5 {[%clk
00:11:10]} {[%emt 00:00:10]} Kb7 {[%clk 00:13:32]} {[%emt 00:00:02]} 53. Qc6+
{[%clk 00:11:17]} {[%emt 00:00:03]} Ka7 {[%clk 00:13:38]} {[%emt 00:00:03]} 54.
Qb5 {[%clk 00:11:25]} {[%emt 00:00:04]} Ka8 {[%clk 00:13:44]} {[%emt 00:00:04]}
55. Kc6 {[%clk 00:11:33]} {[%emt 00:00:02]} Ka7 {[%clk 00:13:52]} {[%emt
00:00:02]} 56. Qb7# 1-0

[Event "Chessity Nationale Pupillendag 2019 - Groep G"]
[Site "Meppel, Netherlands"]
[Date "2019.06.29"]
[Round "1.4"]
[White "Agoramoorthy, Mukilan"]
[Black "Geldof, Max"]
[Result "0-1"]
[TimeControl "15 min + 10 sec"]
[WhiteElo "310"]
[BlackElo "745"]

1. e4 {[%clk 00:15:19]} e5 {[%clk 00:15:19]} {[%emt 00:00:01]} 2. Bc4 {[%clk
00:15:27]} {[%emt 00:00:02]} Nf6 {[%clk 00:15:26]} {[%emt 00:00:03]} 3. Qe2
{[%clk 00:15:35]} {[%emt 00:00:02]} Nc6 {[%clk 00:15:29]} {[%emt 00:00:07]} 4.
Bb3 {[%clk 00:15:42]} {[%emt 00:00:02]} d6 {[%emt 00:00:06]} 5. Qc4 {[%clk
00:15:49]} Be6 {[%clk 00:15:41]} {[%emt 00:00:04]} 6. Qc3 {[%clk 00:15:54]}
{[%emt 00:00:04]} Nxe4 {[%clk 00:15:36]} {[%emt 00:00:15]} 7. Qd3 {[%clk
00:16:00]} {[%emt 00:00:04]} Nc5 {[%clk 00:15:32]} {[%emt 00:00:15]} 8. Qc3
{[%clk 00:16:03]} {[%emt 00:00:06]} Bxb3 {[%clk 00:15:34]} {[%emt 00:00:08]} 9.
axb3 {[%clk 00:16:10]} {[%emt 00:00:03]} d5 {[%clk 00:15:38]} {[%emt 00:00:06]}
10. Qf3 {[%clk 00:16:07]} {[%emt 00:00:10]} Nd4 {[%clk 00:15:41]} {[%emt
00:00:10]} 11. Qd1 {[%clk 00:16:10]} {[%emt 00:00:06]} Bd6 {[%clk 00:15:41]}
{[%emt 00:00:12]} 12. b4 {[%clk 00:16:17]} {[%emt 00:00:03]} Nce6 {[%clk
00:15:42]} {[%emt 00:00:08]} 13. b5 {[%clk 00:16:18]} {[%emt 00:00:10]} Nxb5
{[%clk 00:15:45]} {[%emt 00:00:07]} 14. Nh3 {[%clk 00:16:16]} {[%emt 00:00:09]}
O-O {[%clk 00:15:41]} {[%emt 00:00:17]} 15. Qe2 {[%clk 00:16:20]} {[%emt
00:00:04]} Nbd4 {[%clk 00:15:39]} {[%emt 00:00:14]} 16. Qd3 {[%clk 00:16:24]}
{[%emt 00:00:04]} Nc5 {[%clk 00:15:37]} {[%emt 00:00:14]} 17. Qf1 {[%clk
00:16:18]} {[%emt 00:00:13]} Nxc2+ {[%clk 00:15:38]} {[%emt 00:00:11]} 18. Kd1
{[%clk 00:16:16]} {[%emt 00:00:08]} Nxa1 {[%clk 00:15:46]} {[%emt 00:00:07]} 19.
g3 {[%clk 00:16:13]} {[%emt 00:00:12]} Nab3 {[%clk 00:15:50]} {[%emt 00:00:06]}
20. Qe2 {[%clk 00:16:05]} {[%emt 00:00:17]} Nxc1 {[%clk 00:15:54]} {[%emt
00:00:07]} 21. Kxc1 {[%clk 00:16:12]} {[%emt 00:00:03]} Nb3+ {[%clk 00:15:29]}
{[%emt 00:00:35]} 22. Kd1 {[%clk 00:16:16]} {[%emt 00:00:06]} Be7 {[%clk
00:15:12]} {[%emt 00:00:26]} 23. f4 {[%clk 00:16:20]} {[%emt 00:00:06]} Qd7
{[%clk 00:15:01]} {[%emt 00:00:23]} 24. Qh5 {[%clk 00:16:22]} {[%emt 00:00:05]}
exf4 {[%clk 00:15:02]} {[%emt 00:00:12]} 25. gxf4 {[%emt 00:00:08]} Qa4 {[%clk
00:14:56]} {[%emt 00:00:11]} 26. Ng5 {[%clk 00:16:33]} {[%emt 00:00:05]} Bxg5
{[%clk 00:15:03]} {[%emt 00:00:03]} 27. fxg5 {[%clk 00:16:41]} {[%emt
00:00:02]} Nd4+ {[%clk 00:15:08]} {[%emt 00:00:05]} 28. Ke1 {[%clk 00:16:45]}
{[%emt 00:00:04]} Rfe8+ {[%clk 00:15:15]} {[%emt 00:00:05]} 29. Kf2 {[%clk
00:16:52]} {[%emt 00:00:02]} Re2+ {[%clk 00:15:17]} {[%emt 00:00:09]} 30. Kg3
{[%clk 00:16:52]} {[%emt 00:00:06]} Qb3+ {[%clk 00:15:20]} {[%emt 00:00:12]} 31.
Nc3 {[%clk 00:16:56]} {[%emt 00:00:05]} Nf5+ {[%clk 00:15:18]} {[%emt
00:00:13]} 32. Kg4 {[%clk 00:17:03]} {[%emt 00:00:03]} Nd6 {[%clk 00:14:20]}
{[%emt 00:01:07]} 33. Nxe2 {[%clk 00:17:11]} {[%emt 00:00:04]} Qc4+ {[%clk
00:14:15]} {[%emt 00:00:16]} 34. Kf3 {[%clk 00:17:15]} {[%emt 00:00:04]} Qe4+
{[%clk 00:14:17]} {[%emt 00:00:09]} 35. Kf2 {[%clk 00:17:20]} {[%emt 00:00:02]}
Qxh1 {[%clk 00:14:19]} {[%emt 00:00:11]} 36. Nf4 {[%clk 00:17:17]} {[%emt
00:00:12]} Ne4+ {[%clk 00:14:18]} {[%emt 00:00:10]} 37. Ke2 {[%clk 00:17:22]}
{[%emt 00:00:02]} d4 {[%clk 00:13:57]} {[%emt 00:00:34]} 38. b4 {[%clk
00:17:16]} {[%emt 00:00:16]} Re8 {[%clk 00:14:03]} {[%emt 00:00:05]} 39. Nd5
{[%clk 00:16:58]} {[%emt 00:00:27]} Ng3+ {[%clk 00:14:10]} {[%emt 00:00:04]} 40.
Kd3 {[%clk 00:17:04]} {[%emt 00:00:03]} Nxh5 {[%clk 00:14:13]} {[%emt
00:00:08]} 41. Nxc7 {[%clk 00:17:07]} {[%emt 00:00:07]} Qe4+ {[%clk 00:14:15]}
{[%emt 00:00:08]} 42. Kc4 {[%clk 00:17:11]} {[%emt 00:00:04]} Rc8 {[%clk
00:14:13]} {[%emt 00:00:14]} 43. d3 {[%clk 00:17:01]} {[%emt 00:00:20]} Rxc7+
{[%clk 00:14:21]} {[%emt 00:00:03]} 44. Kb5 {[%clk 00:17:08]} {[%emt 00:00:02]}
Qxd3+ {[%clk 00:14:25]} {[%emt 00:00:07]} 45. Ka5 {[%clk 00:17:14]} {[%emt
00:00:03]} Qa3+ {[%clk 00:14:25]} {[%emt 00:00:11]} 46. Kb5 {[%clk 00:17:19]}
{[%emt 00:00:04]} Qa6# {[%emt 00:00:04]} 0-1

[Event "Chessity Nationale Pupillendag 2019 - Groep G"]
[Site "Meppel, Netherlands"]
[Date "2019.06.29"]
[Round "1.5"]
[White "Rooijakkers, Liam"]
[Black "Van Westrhenen, Aleksej"]
[Result "1-0"]
[TimeControl "15 min + 10 sec"]
[WhiteElo "733"]
[BlackElo "284"]

1. e4 {[%clk 00:15:17]} {[%emt 00:00:02]} e5 {[%clk 00:15:18]} {[%emt
00:00:02]} 2. Nc3 {[%clk 00:15:24]} {[%emt 00:00:03]} Bc5 {[%clk 00:15:25]}
{[%emt 00:00:03]} 3. f4 {[%clk 00:15:29]} {[%emt 00:00:05]} Bb6 {[%clk
00:15:34]} {[%emt 00:00:02]} 4. Nf3 {[%clk 00:15:32]} {[%emt 00:00:06]} exf4
{[%clk 00:15:42]} {[%emt 00:00:03]} 5. d4 {[%clk 00:15:37]} {[%emt 00:00:05]}
c5 {[%clk 00:15:37]} {[%emt 00:00:04]} 6. dxc5 {[%clk 00:15:32]} {[%emt
00:00:26]} Bxc5 {[%clk 00:15:44]} {[%emt 00:00:03]} 7. Bxf4 {[%clk 00:15:36]}
{[%emt 00:00:06]} Qh4+ {[%clk 00:15:50]} {[%emt 00:00:04]} 8. g3 {[%clk
00:15:39]} {[%emt 00:00:05]} Qe7 {[%clk 00:15:57]} {[%emt 00:00:05]} 9. Bc4
{[%clk 00:15:06]} {[%emt 00:00:41]} Bb6 {[%emt 00:00:13]} 10. Qd2 {[%emt
00:00:24]} Nf6 {[%clk 00:15:25]} {[%emt 00:00:08]} 11. e5 {[%clk 00:14:58]}
{[%emt 00:00:18]} Ne4 {[%clk 00:15:32]} {[%emt 00:00:03]} 12. Nxe4 {[%clk
00:15:02]} {[%emt 00:00:05]} O-O {[%emt 00:00:12]} 13. O-O-O {[%emt 00:00:07]}
Nc6 {[%emt 00:00:32]} 14. e6 {[%clk 00:14:20]} {[%emt 00:00:43]} fxe6 {[%emt
00:00:04]} 15. Bd6 {[%emt 00:00:04]} Be3 {[%clk 00:14:50]} {[%emt 00:00:14]} 16.
Qxe3 {[%clk 00:14:26]} {[%emt 00:00:04]} Qf7 {[%clk 00:14:51]} {[%emt
00:00:09]} 17. Neg5 {[%clk 00:14:18]} {[%emt 00:00:18]} Qf5 {[%clk 00:14:48]}
{[%emt 00:00:09]} 18. Bxf8 {[%clk 00:14:21]} {[%emt 00:00:13]} Kxf8 {[%clk
00:14:52]} {[%emt 00:00:03]} 19. Bd3 {[%clk 00:14:26]} {[%emt 00:00:09]} Qa5
{[%clk 00:14:52]} {[%emt 00:00:09]} 20. Nxh7+ {[%clk 00:14:30]} {[%emt
00:00:07]} Kf7 {[%clk 00:14:57]} {[%emt 00:00:03]} 21. Nfg5+ {[%clk 00:14:34]}
{[%emt 00:00:08]} Ke7 {[%clk 00:15:09]} {[%emt 00:00:11]} 22. Rhf1 {[%clk
00:14:22]} {[%emt 00:00:27]} Nb4 {[%emt 00:00:20]} 23. Rf7+ {[%clk 00:14:27]}
{[%emt 00:00:01]} Kd8 {[%clk 00:15:08]} {[%emt 00:00:07]} 24. a3 {[%clk
00:13:52]} {[%emt 00:00:45]} Na2+ {[%clk 00:15:14]} {[%emt 00:00:05]} 25. Kb1
{[%clk 00:13:59]} {[%emt 00:00:02]} Nb4 {[%clk 00:14:58]} {[%emt 00:00:27]} 26.
Nxe6+ {[%clk 00:13:59]} {[%emt 00:00:09]} dxe6 {[%emt 00:00:03]} 27. Qd4+
{[%emt 00:00:01]} Bd7 {[%clk 00:14:58]} {[%emt 00:00:06]} 28. Qxd7# {[%clk
00:14:03]} {[%emt 00:00:05]} 1-0

[Event "Chessity Nationale Pupillendag 2019 - Groep G"]
[Site "Meppel, Netherlands"]
[Date "2019.06.29"]
[Round "2.2"]
[White "Terlouw, Wouter"]
[Black "Heber, Oskar"]
[Result "1-0"]
[TimeControl "15 min + 10 sec"]
[WhiteElo "898"]
[BlackElo "453"]

1. d4 {[%clk 00:15:18]} {[%emt 00:00:02]} d5 {[%clk 00:15:19]} {[%emt
00:00:01]} 2. c4 {[%clk 00:15:24]} {[%emt 00:00:01]} Nf6 {[%clk 00:15:28]}
{[%emt 00:00:04]} 3. cxd5 {[%clk 00:15:32]} {[%emt 00:00:02]} Bd7 {[%clk
00:15:17]} {[%emt 00:00:16]} 4. Nc3 {[%clk 00:15:39]} {[%emt 00:00:08]} e6
{[%clk 00:15:14]} {[%emt 00:00:12]} 5. dxe6 {[%clk 00:15:45]} {[%emt 00:00:05]}
Bxe6 {[%clk 00:15:20]} {[%emt 00:00:03]} 6. Nf3 {[%clk 00:15:51]} {[%emt
00:00:03]} Bb4 {[%clk 00:15:20]} {[%emt 00:00:11]} 7. Bg5 {[%clk 00:15:57]}
{[%emt 00:00:04]} Bxc3+ {[%clk 00:15:28]} {[%emt 00:00:03]} 8. bxc3 {[%clk
00:16:05]} {[%emt 00:00:02]} O-O {[%clk 00:15:27]} {[%emt 00:00:10]} 9. e3
{[%clk 00:16:13]} {[%emt 00:00:03]} h6 {[%clk 00:15:27]} {[%emt 00:00:08]} 10.
Bh4 {[%clk 00:16:21]} {[%emt 00:00:04]} Nc6 {[%clk 00:14:58]} {[%emt 00:00:33]}
11. Bxf6 {[%clk 00:16:20]} {[%emt 00:00:17]} gxf6 {[%clk 00:14:59]} {[%emt
00:00:08]} 12. Bd3 {[%clk 00:16:26]} {[%emt 00:00:05]} f5 {[%clk 00:14:26]}
{[%emt 00:00:44]} 13. O-O {[%clk 00:16:27]} {[%emt 00:00:08]} Qd6 {[%clk
00:14:00]} {[%emt 00:00:35]} 14. Nh4 {[%clk 00:16:26]} {[%emt 00:00:12]} f4
{[%clk 00:13:38]} {[%emt 00:00:32]} 15. Qh5 {[%clk 00:16:28]} {[%emt 00:00:08]}
Ne7 {[%clk 00:12:58]} {[%emt 00:00:50]} 16. Qxh6 {[%clk 00:16:30]} {[%emt
00:00:08]} Rfe8 {[%clk 00:12:35]} {[%emt 00:00:32]} 17. Qh7+ {[%clk 00:15:21]}
{[%emt 00:01:19]} Kf8 {[%clk 00:12:38]} {[%emt 00:00:07]} 18. Qh8+ {[%clk
00:15:28]} {[%emt 00:00:04]} Ng8 {[%clk 00:12:43]} {[%emt 00:00:05]} 19. Bh7
{[%clk 00:15:25]} {[%emt 00:00:14]} Ke7 {[%clk 00:12:30]} {[%emt 00:00:19]} 20.
Bf5 {[%clk 00:14:58]} {[%emt 00:00:40]} Nf6 {[%clk 00:12:07]} {[%emt 00:00:33]}
21. Qh6 {[%clk 00:14:28]} {[%emt 00:00:40]} Qd7 {[%clk 00:11:46]} {[%emt
00:00:28]} 22. Bxe6 {[%clk 00:14:34]} {[%emt 00:00:07]} Qxe6 {[%clk 00:11:51]}
{[%emt 00:00:05]} 23. Qxf4 {[%clk 00:14:37]} {[%emt 00:00:06]} Nd5 {[%clk
00:11:30]} {[%emt 00:00:30]} 24. Qg5+ {[%clk 00:14:16]} {[%emt 00:00:33]} Qf6
{[%clk 00:11:28]} {[%emt 00:00:08]} 25. Qxd5 {[%clk 00:14:05]} {[%emt
00:00:25]} Qxh4 {[%clk 00:11:27]} {[%emt 00:00:09]} 26. Qxb7 {[%clk 00:14:08]}
{[%emt 00:00:08]} Kd7 {[%clk 00:10:59]} {[%emt 00:00:34]} 27. Qd5+ {[%clk
00:14:14]} {[%emt 00:00:07]} Ke7 {[%clk 00:10:54]} {[%emt 00:00:09]} 28. Qc6
{[%clk 00:14:11]} {[%emt 00:00:20]} Rec8 {[%clk 00:10:37]} {[%emt 00:00:23]} 29.
Rab1 {[%clk 00:14:05]} {[%emt 00:00:20]} Kd8 {[%clk 00:10:30]} {[%emt
00:00:18]} 30. Qd5+ {[%clk 00:13:52]} {[%emt 00:00:22]} Ke8 {[%clk 00:10:33]}
{[%emt 00:00:07]} 31. Rb7 {[%clk 00:13:49]} {[%emt 00:00:14]} Rd8 {[%clk
00:10:13]} {[%emt 00:00:29]} 32. Qc6+ {[%clk 00:13:55]} {[%emt 00:00:05]} Rd7
{[%clk 00:10:16]} {[%emt 00:00:08]} 33. Rxc7 {[%clk 00:13:59]} {[%emt
00:00:05]} Qe7 {[%clk 00:10:14]} {[%emt 00:00:11]} 34. Qxa8+ {[%clk 00:14:02]}
{[%emt 00:00:08]} Rd8 {[%clk 00:10:16]} {[%emt 00:00:07]} 35. Rxe7+ {[%clk
00:14:09]} {[%emt 00:00:03]} Kxe7 {[%clk 00:10:23]} {[%emt 00:00:03]} 36. Qe4+
{[%clk 00:14:17]} {[%emt 00:00:02]} Kd7 {[%clk 00:10:28]} {[%emt 00:00:05]} 37.
c4 {[%clk 00:14:24]} {[%emt 00:00:04]} Re8 {[%clk 00:10:29]} {[%emt 00:00:09]}
38. Qd5+ {[%clk 00:14:31]} {[%emt 00:00:03]} Ke7 {[%clk 00:10:34]} {[%emt
00:00:04]} 39. Rb1 {[%clk 00:14:39]} {[%emt 00:00:03]} Rd8 {[%clk 00:10:19]}
{[%emt 00:00:23]} 40. Rb7+ {[%clk 00:14:47]} {[%emt 00:00:03]} Ke8 {[%clk
00:10:24]} {[%emt 00:00:05]} 41. Qxf7# {[%clk 00:14:54]} {[%emt 00:00:03]} 1-0